[Event "Titled Tuesday Blitz November 22 Early 2022"]
[White "Odegov, Artem"]
[Black "Kamsky, Gata"]
[WhiteFideId "34183644"]
[BlackFideId "2000024"]
[WhiteElo "2298"]
[BlackElo "2666"]
[Result "1/2-1/2"]
[Round "02"]
[TimeControl "180+1"]
[Date "2022.11.23"]
[WhiteClock "0:01:02"]
[BlackClock "0:01:00"]

1. d4 {[%clk 0:03:00]}  f5 {[%clk 0:02:58]} 2. g4 {[%clk 0:02:59]}  fxg4 {[%clk 0:02:55]} 3. h3 {[%clk 0:02:58]}  g3 {[%clk 0:02:54]} 4. fxg3 {[%clk 0:02:59]}  d5 {[%clk 0:02:23]} 5. Bg2 {[%clk 0:02:58]}  Nf6 {[%clk 0:02:21]} 6. Nc3 {[%clk 0:02:56]}  e6 {[%clk 0:02:01]} 7. e4 {[%clk 0:02:13]}  dxe4 {[%clk 0:01:58]} 8. Nxe4 {[%clk 0:02:14]}  Be7 {[%clk 0:01:58]} 9. Nxf6+ {[%clk 0:02:05]}  Bxf6 {[%clk 0:01:58]} 10. Ne2 {[%clk 0:02:05]}  O-O {[%clk 0:01:57]} 11. O-O {[%clk 0:02:05]}  Nc6 {[%clk 0:01:51]} 12. Be3 {[%clk 0:02:00]}  Bd7 {[%clk 0:01:32]} 13. c3 {[%clk 0:02:00]}  Kh8 {[%clk 0:01:25]} 14. Nf4 {[%clk 0:01:49]}  e5 {[%clk 0:01:21]} 15. Nd5 {[%clk 0:01:36]}  exd4 {[%clk 0:01:19]} 16. Nxf6 {[%clk 0:01:35]}  Rxf6 {[%clk 0:01:17]} 17. Bxd4 {[%clk 0:01:35]}  Rxf1+ {[%clk 0:01:16]} 18. Bxf1 {[%clk 0:01:36]}  Nxd4 {[%clk 0:01:15]} 19. Qxd4 {[%clk 0:01:36]}  Bc6 {[%clk 0:01:14]} 20. Qxd8+ {[%clk 0:01:23]}  Rxd8 {[%clk 0:01:13]} 21. Re1 {[%clk 0:01:24]}  Kg8 {[%clk 0:01:07]} 22. Bc4+ {[%clk 0:01:21]}  Kf8 {[%clk 0:01:05]} 23. Rf1+ {[%clk 0:01:21]}  Ke8 {[%clk 0:01:03]} 24. Rf7 {[%clk 0:01:15]}  Rd7 {[%clk 0:01:03]} 25. Rxd7 {[%clk 0:01:06]}  Kxd7 {[%clk 0:01:03]} 26. Kf2 {[%clk 0:01:07]}  Kd6 {[%clk 0:01:03]} 27. Ke3 {[%clk 0:01:06]}  Ke5 {[%clk 0:01:04]} 28. h4 {[%clk 0:01:05]}  h6 {[%clk 0:01:04]} 29. Bd3 {[%clk 0:01:04]}  b6 {[%clk 0:01:04]} 30. Bc2 {[%clk 0:01:01]}  Bd5 {[%clk 0:01:04]} 31. a3 {[%clk 0:01:01]}  c5 {[%clk 0:01:03]} 32. Bg6 {[%clk 0:01:00]}  Bc4 {[%clk 0:01:02]} 33. Bc2 {[%clk 0:01:00]}  g5 {[%clk 0:01:02]} 34. hxg5 {[%clk 0:01:00]}  hxg5 {[%clk 0:01:03]} 35. Bb1 {[%clk 0:01:00]}  Bd5 {[%clk 0:01:02]} 36. Bd3 {[%clk 0:01:00]}  a5 {[%clk 0:01:02]} 37. Bc2 {[%clk 0:01:00]}  Be6 {[%clk 0:01:01]} 38. Bd3 {[%clk 0:01:01]}  Bd5 {[%clk 0:01:00]} 39. Bc2 {[%clk 0:01:01]}  Be6 {[%clk 0:01:00]} 40. Bd3 {[%clk 0:01:02]}  Bd5 {[%clk 0:01:00]} 1/2-1/2


[Site "https://www.chess.com"]

[Event "Titled Tuesday Blitz November 22 Early 2022"]
[White "Odinaev, Timur"]
[Black "Bacrot, Etienne"]
[WhiteFideId "4163770"]
[BlackFideId "605506"]
[WhiteElo "2606"]
[BlackElo "2866"]
[Result "0-1"]
[Round "02"]
[TimeControl "180+1"]
[Date "2022.11.23"]
[WhiteClock "0:00:08"]
[BlackClock "0:00:08"]

1. e4 {[%clk 0:02:59]}  c5 {[%clk 0:02:59]} 2. Nc3 {[%clk 0:02:58]}  Nc6 {[%clk 0:02:59]} 3. Bb5 {[%clk 0:02:57]}  g6 {[%clk 0:02:58]} 4. Bxc6 {[%clk 0:02:52]}  bxc6 {[%clk 0:02:58]} 5. d4 {[%clk 0:02:51]}  Bg7 {[%clk 0:02:39]} 6. dxc5 {[%clk 0:02:48]}  Qa5 {[%clk 0:02:38]} 7. Nf3 {[%clk 0:02:46]}  Ba6 {[%clk 0:02:33]} 8. Bd2 {[%clk 0:02:40]}  Qxc5 {[%clk 0:02:32]} 9. Ne2 {[%clk 0:02:04]}  Nf6 {[%clk 0:02:23]} 10. Bc3 {[%clk 0:01:36]}  Nxe4 {[%clk 0:02:18]} 11. O-O {[%clk 0:01:34]}  Nxc3 {[%clk 0:02:11]} 12. bxc3 {[%clk 0:01:34]}  Bxe2 {[%clk 0:02:03]} 13. Qxe2 {[%clk 0:01:32]}  Bxc3 {[%clk 0:02:03]} 14. Rad1 {[%clk 0:01:28]}  d5 {[%clk 0:01:58]} 15. Rd3 {[%clk 0:01:23]}  O-O {[%clk 0:01:50]} 16. h4 {[%clk 0:01:23]}  Bf6 {[%clk 0:01:27]} 17. h5 {[%clk 0:01:20]}  d4 {[%clk 0:01:25]} 18. hxg6 {[%clk 0:01:14]}  hxg6 {[%clk 0:01:25]} 19. Qe4 {[%clk 0:01:13]}  Rad8 {[%clk 0:01:13]} 20. Re1 {[%clk 0:01:12]}  Kg7 {[%clk 0:01:09]} 21. Red1 {[%clk 0:01:08]}  Rh8 {[%clk 0:01:01]} 22. Nxd4 {[%clk 0:01:00]}  Qh5 {[%clk 0:00:38]} 23. Kf1 {[%clk 0:00:40]}  Rd5 {[%clk 0:00:19]} 24. Nf3 {[%clk 0:00:27]}  Qh1+ {[%clk 0:00:16]} 25. Ke2 {[%clk 0:00:27]}  Qxg2 {[%clk 0:00:15]} 26. Rxd5 {[%clk 0:00:26]}  cxd5 {[%clk 0:00:15]} 27. Qxd5 {[%clk 0:00:26]}  Qg4 {[%clk 0:00:12]} 28. Rg1 {[%clk 0:00:21]}  Qc8 {[%clk 0:00:11]} 29. Qe4 {[%clk 0:00:20]}  Qa6+ {[%clk 0:00:10]} 30. Qd3 {[%clk 0:00:20]}  Qxa2 {[%clk 0:00:10]} 31. Re1 {[%clk 0:00:17]}  Qe6+ {[%clk 0:00:10]} 32. Kd2 {[%clk 0:00:13]}  Qb6 {[%clk 0:00:10]} 33. Ne5 {[%clk 0:00:11]}  Rd8 {[%clk 0:00:08]} 34. Nd7 {[%clk 0:00:11]}  Qc7 {[%clk 0:00:08]} 35. Rxe7 {[%clk 0:00:08]}  Bxe7 {[%clk 0:00:08]} 36. Qd4+ {[%clk 0:00:08]}  f6 {[%clk 0:00:08]} 0-1


[Site "https://www.chess.com"]

[Event "Titled Tuesday Blitz November 22 Early 2022"]
[White "Osmonbekov, Talaibek"]
[Black "Golichenko, Ilija"]
[WhiteFideId "2017253"]
[BlackFideId "14117223"]
[WhiteElo "2135"]
[BlackElo "2350"]
[Result "0-1"]
[Round "02"]
[TimeControl "180+1"]
[Date "2022.11.23"]
[WhiteClock "0:00:16"]
[BlackClock "0:00:04"]

1. d4 {[%clk 0:03:00]}  Nf6 {[%clk 0:01:34]} 2. Bf4 {[%clk 0:02:58]}  d5 {[%clk 0:01:32]} 3. Nc3 {[%clk 0:02:58]}  c6 {[%clk 0:01:31]} 4. e3 {[%clk 0:02:58]}  Bf5 {[%clk 0:01:30]} 5. f3 {[%clk 0:02:56]}  h6 {[%clk 0:01:28]} 6. g4 {[%clk 0:02:55]}  Bh7 {[%clk 0:01:26]} 7. h4 {[%clk 0:02:55]}  e6 {[%clk 0:01:18]} 8. Bd3 {[%clk 0:02:55]}  Bxd3 {[%clk 0:01:15]} 9. Qxd3 {[%clk 0:02:55]}  Bd6 {[%clk 0:01:16]} 10. Nge2 {[%clk 0:02:55]}  Qc7 {[%clk 0:01:06]} 11. O-O-O {[%clk 0:02:52]}  Nbd7 {[%clk 0:01:00]} 12. g5 {[%clk 0:02:31]}  Nh5 {[%clk 0:00:54]} 13. Bxd6 {[%clk 0:02:29]}  Qxd6 {[%clk 0:00:55]} 14. e4 {[%clk 0:02:29]}  O-O-O {[%clk 0:00:48]} 15. Qe3 {[%clk 0:02:15]}  g6 {[%clk 0:00:44]} 16. gxh6 {[%clk 0:02:08]}  Qf8 {[%clk 0:00:38]} 17. exd5 {[%clk 0:01:33]}  exd5 {[%clk 0:00:34]} 18. Qg5 {[%clk 0:01:29]}  Qxh6 {[%clk 0:00:32]} 19. Rdg1 {[%clk 0:01:23]}  f6 {[%clk 0:00:20]} 20. Qxh6 {[%clk 0:01:22]}  Rxh6 {[%clk 0:00:21]} 21. Kd2 {[%clk 0:01:22]}  Rdh8 {[%clk 0:00:19]} 22. Nd1 {[%clk 0:01:09]}  Nf8 {[%clk 0:00:17]} 23. Ne3 {[%clk 0:01:04]}  Kd7 {[%clk 0:00:17]} 24. b3 {[%clk 0:00:54]}  Ke6 {[%clk 0:00:17]} 25. c4 {[%clk 0:00:53]}  dxc4 {[%clk 0:00:16]} 26. bxc4 {[%clk 0:00:52]}  Kf7 {[%clk 0:00:16]} 27. d5 {[%clk 0:00:51]}  Ng7 {[%clk 0:00:16]} 28. Ng2 {[%clk 0:00:49]}  Nf5 {[%clk 0:00:15]} 29. Rb1 {[%clk 0:00:38]}  b6 {[%clk 0:00:13]} 30. dxc6 {[%clk 0:00:38]}  Ne6 {[%clk 0:00:13]} 31. Kc3 {[%clk 0:00:28]}  Nxh4 {[%clk 0:00:11]} 32. Nxh4 {[%clk 0:00:26]}  Rxh4 {[%clk 0:00:12]} 33. Rxh4 {[%clk 0:00:26]}  Rxh4 {[%clk 0:00:11]} 34. Rd1 {[%clk 0:00:26]}  Rh7 {[%clk 0:00:07]} 35. Rd7+ {[%clk 0:00:22]}  Kg8 {[%clk 0:00:07]} 36. Rd6 {[%clk 0:00:23]}  Nc7 {[%clk 0:00:07]} 37. Rxf6 {[%clk 0:00:22]}  Re7 {[%clk 0:00:07]} 38. Nd4 {[%clk 0:00:21]}  Kg7 {[%clk 0:00:07]} 39. Rd6 {[%clk 0:00:21]}  Ne8 {[%clk 0:00:08]} 40. Ne6+ {[%clk 0:00:20]}  Kf6 {[%clk 0:00:08]} 41. Nd8+ {[%clk 0:00:19]}  Nxd6 {[%clk 0:00:08]} 42. Kd4 {[%clk 0:00:16]}  Nf5+ {[%clk 0:00:05]} 43. Kd5 {[%clk 0:00:16]}  Re5# {[%clk 0:00:04]} 0-1


[Site "https://www.chess.com"]

[Event "Titled Tuesday Blitz November 22 Early 2022"]
[White "Ozen, Bahadir"]
[Black "Averjanov, Alexey"]
[WhiteFideId "6337058"]
[BlackFideId "14109867"]
[WhiteElo "2503"]
[BlackElo "2605"]
[Result "1/2-1/2"]
[Round "02"]
[TimeControl "180+1"]
[Date "2022.11.23"]
[WhiteClock "0:00:18"]
[BlackClock "0:00:21"]

1. g3 {[%clk 0:03:00]}  c5 {[%clk 0:02:59]} 2. Bg2 {[%clk 0:03:01]}  Nc6 {[%clk 0:02:59]} 3. Nf3 {[%clk 0:03:01]}  g6 {[%clk 0:02:59]} 4. O-O {[%clk 0:03:01]}  Bg7 {[%clk 0:02:59]} 5. d3 {[%clk 0:03:01]}  e6 {[%clk 0:02:59]} 6. e4 {[%clk 0:03:01]}  Nge7 {[%clk 0:02:59]} 7. c3 {[%clk 0:02:57]}  O-O {[%clk 0:02:59]} 8. Nbd2 {[%clk 0:02:44]}  b5 {[%clk 0:02:57]} 9. a3 {[%clk 0:02:43]}  Rb8 {[%clk 0:02:57]} 10. Re1 {[%clk 0:02:35]}  a5 {[%clk 0:02:56]} 11. a4 {[%clk 0:02:26]}  b4 {[%clk 0:01:50]} 12. e5 {[%clk 0:02:22]}  bxc3 {[%clk 0:01:41]} 13. bxc3 {[%clk 0:02:22]}  Qc7 {[%clk 0:01:39]} 14. Nc4 {[%clk 0:01:46]}  Ba6 {[%clk 0:01:38]} 15. Qe2 {[%clk 0:01:46]}  Rb3 {[%clk 0:01:23]} 16. Bd2 {[%clk 0:01:16]}  Nd5 {[%clk 0:01:21]} 17. Rac1 {[%clk 0:01:12]}  Rfb8 {[%clk 0:01:20]} 18. Qe4 {[%clk 0:01:11]}  f5 {[%clk 0:00:46]} 19. exf6 {[%clk 0:00:54]}  Bxf6 {[%clk 0:00:45]} 20. Nfe5 {[%clk 0:00:53]}  Nxe5 {[%clk 0:00:40]} 21. Nxe5 {[%clk 0:00:54]}  Bxe5 {[%clk 0:00:39]} 22. Qxe5 {[%clk 0:00:55]}  Qxe5 {[%clk 0:00:39]} 23. Rxe5 {[%clk 0:00:56]}  Bxd3 {[%clk 0:00:37]} 24. Rxd5 {[%clk 0:00:45]}  exd5 {[%clk 0:00:37]} 25. Bxd5+ {[%clk 0:00:46]}  Kf8 {[%clk 0:00:33]} 26. Bxb3 {[%clk 0:00:29]}  Rxb3 {[%clk 0:00:34]} 27. c4 {[%clk 0:00:30]}  Ra3 {[%clk 0:00:19]} 28. Bxa5 {[%clk 0:00:22]}  Rxa4 {[%clk 0:00:19]} 29. Bb6 {[%clk 0:00:21]}  Rxc4 {[%clk 0:00:20]} 30. Bxc5+ {[%clk 0:00:20]}  Kf7 {[%clk 0:00:20]} 31. Rxc4 {[%clk 0:00:18]}  Bxc4 {[%clk 0:00:21]} 32. f3 {[%clk 0:00:18]} 1/2-1/2


[Site "https://www.chess.com"]

[Event "Titled Tuesday Blitz November 22 Early 2022"]
[White "Pinheiro, Iung Alicio de O."]
[Black "Kosakowski, Jakub"]
[WhiteFideId "2104350"]
[BlackFideId "1185080"]
[WhiteElo "2283"]
[BlackElo "2463"]
[Result "0-1"]
[Round "02"]
[TimeControl "180+1"]
[Date "2022.11.23"]
[WhiteClock "0:00:03"]
[BlackClock "0:00:18"]

1. e4 {[%clk 0:03:00]}  c5 {[%clk 0:02:57]} 2. Nf3 {[%clk 0:02:59]}  d6 {[%clk 0:02:58]} 3. Bc4 {[%clk 0:02:58]}  Nf6 {[%clk 0:02:57]} 4. d3 {[%clk 0:02:57]}  g6 {[%clk 0:02:52]} 5. O-O {[%clk 0:02:56]}  Bg7 {[%clk 0:02:52]} 6. c3 {[%clk 0:02:57]}  O-O {[%clk 0:02:52]} 7. Bb3 {[%clk 0:02:57]}  Nc6 {[%clk 0:02:49]} 8. h3 {[%clk 0:02:54]}  b5 {[%clk 0:02:42]} 9. Re1 {[%clk 0:02:52]}  Bb7 {[%clk 0:02:41]} 10. d4 {[%clk 0:02:51]}  cxd4 {[%clk 0:02:26]} 11. cxd4 {[%clk 0:02:52]}  a5 {[%clk 0:02:26]} 12. Nc3 {[%clk 0:02:44]}  a4 {[%clk 0:02:13]} 13. Bc2 {[%clk 0:02:42]}  Qa5 {[%clk 0:01:47]} 14. Bg5 {[%clk 0:02:21]}  a3 {[%clk 0:01:43]} 15. Qd2 {[%clk 0:02:06]}  axb2 {[%clk 0:01:41]} 16. Rab1 {[%clk 0:02:06]}  b4 {[%clk 0:01:36]} 17. Nd5 {[%clk 0:01:42]}  Nxd5 {[%clk 0:01:33]} 18. exd5 {[%clk 0:01:43]}  Qxd5 {[%clk 0:01:29]} 19. Bb3 {[%clk 0:01:43]}  Qf5 {[%clk 0:01:27]} 20. Bh6 {[%clk 0:01:32]}  Na5 {[%clk 0:01:05]} 21. Bc2 {[%clk 0:01:24]}  Qh5 {[%clk 0:01:03]} 22. Bxg7 {[%clk 0:01:23]}  Kxg7 {[%clk 0:01:03]} 23. Be4 {[%clk 0:01:15]}  Bxe4 {[%clk 0:00:53]} 24. Rxe4 {[%clk 0:01:16]}  Nc4 {[%clk 0:00:53]} 25. Qxb4 {[%clk 0:01:14]}  d5 {[%clk 0:00:53]} 26. Rxe7 {[%clk 0:01:07]}  Rxa2 {[%clk 0:00:47]} 27. Ree1 {[%clk 0:00:53]}  Qf5 {[%clk 0:00:34]} 28. Ne5 {[%clk 0:00:47]}  Na3 {[%clk 0:00:29]} 29. Rxb2 {[%clk 0:00:42]}  Nc2 {[%clk 0:00:29]} 30. Rxc2 {[%clk 0:00:24]}  Rxc2 {[%clk 0:00:30]} 31. Rf1 {[%clk 0:00:23]}  Rfc8 {[%clk 0:00:26]} 32. Qa3 {[%clk 0:00:18]}  Qf4 {[%clk 0:00:18]} 33. Qe3 {[%clk 0:00:07]}  Qxe3 {[%clk 0:00:17]} 34. fxe3 {[%clk 0:00:08]}  f6 {[%clk 0:00:17]} 35. Nf3 {[%clk 0:00:08]}  Re2 {[%clk 0:00:17]} 36. Re1 {[%clk 0:00:07]}  Rcc2 {[%clk 0:00:16]} 37. Rxe2 {[%clk 0:00:07]}  Rxe2 {[%clk 0:00:17]} 38. Kf1 {[%clk 0:00:06]}  Rxe3 {[%clk 0:00:17]} 39. Kf2 {[%clk 0:00:07]}  Ra3 {[%clk 0:00:17]} 40. Kf1 {[%clk 0:00:06]}  Kf7 {[%clk 0:00:17]} 41. Kf2 {[%clk 0:00:06]}  Ke6 {[%clk 0:00:17]} 42. Kg3 {[%clk 0:00:05]}  Kf5 {[%clk 0:00:17]} 43. h4 {[%clk 0:00:04]}  Ke4 {[%clk 0:00:16]} 44. Kg4 {[%clk 0:00:04]}  h5+ {[%clk 0:00:16]} 45. Kg3 {[%clk 0:00:04]}  Rxf3+ {[%clk 0:00:17]} 46. gxf3+ {[%clk 0:00:04]}  Ke3 {[%clk 0:00:18]} 47. Kg2 {[%clk 0:00:03]}  f5 {[%clk 0:00:17]} 48. Kg3 {[%clk 0:00:03]}  f4+ {[%clk 0:00:17]} 49. Kg2 {[%clk 0:00:03]}  Kxd4 {[%clk 0:00:18]} 50. Kf2 {[%clk 0:00:03]}  Kd3 {[%clk 0:00:18]} 0-1


[Site "https://www.chess.com"]

[Event "Titled Tuesday Blitz November 22 Early 2022"]
[White "Pranav Anand"]
[Black "Decuigniere, Tom"]
[WhiteFideId "46626786"]
[BlackFideId "26093820"]
[WhiteElo "2402"]
[BlackElo "2252"]
[Result "1-0"]
[Round "02"]
[TimeControl "180+1"]
[Date "2022.11.23"]
[WhiteClock "0:00:29"]
[BlackClock "0:00:06"]

1. Nf3 {[%clk 0:03:00]}  c5 {[%clk 0:02:59]} 2. g3 {[%clk 0:03:00]}  g6 {[%clk 0:03:00]} 3. Bg2 {[%clk 0:03:01]}  Bg7 {[%clk 0:03:00]} 4. O-O {[%clk 0:03:02]}  Nc6 {[%clk 0:03:00]} 5. e4 {[%clk 0:03:02]}  d6 {[%clk 0:02:57]} 6. d3 {[%clk 0:03:02]}  Bg4 {[%clk 0:02:54]} 7. Nbd2 {[%clk 0:03:01]}  e6 {[%clk 0:02:54]} 8. h3 {[%clk 0:03:01]}  Bxf3 {[%clk 0:02:53]} 9. Nxf3 {[%clk 0:03:02]}  Nge7 {[%clk 0:02:53]} 10. c3 {[%clk 0:03:02]}  O-O {[%clk 0:02:53]} 11. h4 {[%clk 0:03:02]}  h6 {[%clk 0:02:49]} 12. Be3 {[%clk 0:02:57]}  b5 {[%clk 0:02:47]} 13. Qd2 {[%clk 0:02:57]}  Kh7 {[%clk 0:02:47]} 14. d4 {[%clk 0:02:52]}  cxd4 {[%clk 0:02:44]} 15. cxd4 {[%clk 0:02:53]}  d5 {[%clk 0:02:44]} 16. e5 {[%clk 0:02:49]}  Nf5 {[%clk 0:02:41]} 17. Bf4 {[%clk 0:02:49]}  Qb6 {[%clk 0:02:38]} 18. Rfd1 {[%clk 0:02:49]}  Rac8 {[%clk 0:02:28]} 19. g4 {[%clk 0:02:48]}  Nfe7 {[%clk 0:02:28]} 20. Be3 {[%clk 0:02:33]}  Qa5 {[%clk 0:02:24]} 21. Qe2 {[%clk 0:02:31]}  Qa4 {[%clk 0:02:12]} 22. h5 {[%clk 0:02:22]}  Nb4 {[%clk 0:01:57]} 23. b3 {[%clk 0:02:14]}  Qa3 {[%clk 0:01:50]} 24. Rd2 {[%clk 0:02:11]}  Rc7 {[%clk 0:01:40]} 25. Kh2 {[%clk 0:01:59]}  Rfc8 {[%clk 0:01:33]} 26. g5 {[%clk 0:01:55]}  Rc2 {[%clk 0:00:53]} 27. gxh6 {[%clk 0:01:51]}  Bxh6 {[%clk 0:00:38]} 28. Bxh6 {[%clk 0:01:50]}  Kxh6 {[%clk 0:00:39]} 29. Qe3+ {[%clk 0:01:51]}  Kg7 {[%clk 0:00:37]} 30. h6+ {[%clk 0:01:50]}  Kh8 {[%clk 0:00:33]} 31. Qg5 {[%clk 0:01:48]}  Ng8 {[%clk 0:00:33]} 32. Qf4 {[%clk 0:01:35]}  R8c7 {[%clk 0:00:25]} 33. Kg3 {[%clk 0:01:06]}  Rxd2 {[%clk 0:00:25]} 34. Qxd2 {[%clk 0:01:07]}  Rc2 {[%clk 0:00:25]} 35. Qf4 {[%clk 0:01:07]}  Nd3 {[%clk 0:00:25]} 36. Qxf7 {[%clk 0:01:07]}  Qe7 {[%clk 0:00:22]} 37. Qxg6 {[%clk 0:01:02]}  Nxf2 {[%clk 0:00:19]} 38. Qxc2 {[%clk 0:01:00]}  Ne4+ {[%clk 0:00:15]} 39. Kh2 {[%clk 0:01:00]}  Nxh6 {[%clk 0:00:16]} 40. Rh1 {[%clk 0:00:54]}  Kg7 {[%clk 0:00:15]} 41. Qc1 {[%clk 0:00:49]}  Nf5 {[%clk 0:00:14]} 42. Qf4 {[%clk 0:00:48]}  Qf7 {[%clk 0:00:10]} 43. Kg1 {[%clk 0:00:45]}  Qc7 {[%clk 0:00:10]} 44. Ng5 {[%clk 0:00:34]}  Neg3 {[%clk 0:00:05]} 45. Rh7+ {[%clk 0:00:33]}  Kg6 {[%clk 0:00:05]} 46. Rxc7 {[%clk 0:00:29]}  Ne2+ {[%clk 0:00:05]} 47. Kh2 {[%clk 0:00:29]}  Nxf4 {[%clk 0:00:06]} 48. Nf3 {[%clk 0:00:29]} 1-0


[Site "https://www.chess.com"]

[Event "Titled Tuesday Blitz November 22 Early 2022"]
[White "Pranav, V"]
[Black "Arabidze, Meri"]
[WhiteFideId "25060783"]
[BlackFideId "13604040"]
[WhiteElo "2430"]
[BlackElo "2403"]
[Result "1-0"]
[Round "02"]
[TimeControl "180+1"]
[Date "2022.11.22"]
[WhiteClock "0:01:50"]
[BlackClock "0:01:08"]

1. e4 {[%clk 0:03:00]}  c5 {[%clk 0:02:55]} 2. Nf3 {[%clk 0:03:00]}  e6 {[%clk 0:02:55]} 3. b3 {[%clk 0:03:00]}  b6 {[%clk 0:02:55]} 4. Bb2 {[%clk 0:03:00]}  Bb7 {[%clk 0:02:55]} 5. Nc3 {[%clk 0:03:00]}  Nc6 {[%clk 0:02:55]} 6. g3 {[%clk 0:02:58]}  Nge7 {[%clk 0:02:55]} 7. Bg2 {[%clk 0:02:58]}  Ng6 {[%clk 0:02:55]} 8. O-O {[%clk 0:02:58]}  Be7 {[%clk 0:02:56]} 9. d4 {[%clk 0:02:57]}  cxd4 {[%clk 0:02:55]} 10. Nxd4 {[%clk 0:02:58]}  O-O {[%clk 0:02:56]} 11. Re1 {[%clk 0:02:56]}  Rc8 {[%clk 0:02:54]} 12. Nxc6 {[%clk 0:02:46]}  Bxc6 {[%clk 0:02:50]} 13. Ne2 {[%clk 0:02:37]}  Bf6 {[%clk 0:02:38]} 14. Nd4 {[%clk 0:02:36]}  Ba8 {[%clk 0:02:27]} 15. Qd2 {[%clk 0:02:35]}  d5 {[%clk 0:02:23]} 16. exd5 {[%clk 0:02:26]}  Bxd5 {[%clk 0:02:24]} 17. Bxd5 {[%clk 0:02:26]}  Qxd5 {[%clk 0:02:24]} 18. c4 {[%clk 0:02:26]}  Qd7 {[%clk 0:02:19]} 19. Rad1 {[%clk 0:02:25]}  Rfd8 {[%clk 0:02:19]} 20. Qe2 {[%clk 0:02:24]}  Qb7 {[%clk 0:02:18]} 21. Nb5 {[%clk 0:02:15]}  Qe7 {[%clk 0:02:07]} 22. Ba3 {[%clk 0:02:06]}  Qb7 {[%clk 0:01:31]} 23. Nd6 {[%clk 0:02:06]}  Rxd6 {[%clk 0:01:30]} 24. Bxd6 {[%clk 0:02:06]}  h6 {[%clk 0:01:29]} 25. h4 {[%clk 0:02:06]}  Be7 {[%clk 0:01:16]} 26. Bxe7 {[%clk 0:01:57]}  Nxe7 {[%clk 0:01:15]} 27. Qe4 {[%clk 0:01:54]}  Qa6 {[%clk 0:01:11]} 28. Rd7 {[%clk 0:01:51]}  Nf5 {[%clk 0:01:11]} 29. Qb7 {[%clk 0:01:50]}  Qxa2 {[%clk 0:01:08]} 30. Qxc8+ {[%clk 0:01:50]} 1-0


[Site "https://www.chess.com"]

[Event "Titled Tuesday Blitz November 22 Early 2022"]
[White "Principe, Gerson"]
[Black "Petrova, Irina"]
[WhiteFideId "3804550"]
[BlackFideId "14124122"]
[WhiteElo "2280"]
[BlackElo "2023"]
[Result "1-0"]
[Round "02"]
[TimeControl "180+1"]
[Date "2022.11.23"]
[WhiteClock "0:01:13"]
[BlackClock "0:00:26"]

1. Nf3 {[%clk 0:02:57]}  d6 {[%clk 0:03:00]} 2. d4 {[%clk 0:02:57]}  g6 {[%clk 0:02:59]} 3. e3 {[%clk 0:02:54]}  Bg7 {[%clk 0:02:59]} 4. Be2 {[%clk 0:02:54]}  Nf6 {[%clk 0:02:58]} 5. O-O {[%clk 0:02:55]}  O-O {[%clk 0:02:58]} 6. c4 {[%clk 0:02:56]}  Nc6 {[%clk 0:02:57]} 7. Nc3 {[%clk 0:02:57]}  e5 {[%clk 0:02:55]} 8. d5 {[%clk 0:02:57]}  Ne7 {[%clk 0:02:55]} 9. b4 {[%clk 0:02:58]}  a5 {[%clk 0:02:53]} 10. Ba3 {[%clk 0:02:54]}  axb4 {[%clk 0:02:51]} 11. Bxb4 {[%clk 0:02:55]}  b6 {[%clk 0:02:52]} 12. a4 {[%clk 0:02:55]}  Nd7 {[%clk 0:02:45]} 13. a5 {[%clk 0:02:55]}  bxa5 {[%clk 0:02:44]} 14. Bxa5 {[%clk 0:02:55]}  f5 {[%clk 0:02:22]} 15. Nb5 {[%clk 0:02:52]}  Nb6 {[%clk 0:02:18]} 16. Bxb6 {[%clk 0:02:07]}  Rxa1 {[%clk 0:02:19]} 17. Qxa1 {[%clk 0:02:07]}  cxb6 {[%clk 0:02:19]} 18. Qa3 {[%clk 0:02:07]}  Rf6 {[%clk 0:02:15]} 19. Rb1 {[%clk 0:02:06]}  Bf8 {[%clk 0:02:03]} 20. Qa7 {[%clk 0:02:00]}  Bd7 {[%clk 0:01:56]} 21. Nc7 {[%clk 0:01:50]}  Nc8 {[%clk 0:01:55]} 22. Qb8 {[%clk 0:01:44]}  Be7 {[%clk 0:01:19]} 23. Ng5 {[%clk 0:01:41]}  e4 {[%clk 0:00:56]} 24. Nge6 {[%clk 0:01:37]}  Bxe6 {[%clk 0:00:55]} 25. Nxe6 {[%clk 0:01:27]}  Qd7 {[%clk 0:00:55]} 26. Rxb6 {[%clk 0:01:24]}  Kf7 {[%clk 0:00:38]} 27. Rb7 {[%clk 0:01:22]}  Qe8 {[%clk 0:00:36]} 28. Rc7 {[%clk 0:01:17]}  h6 {[%clk 0:00:33]} 29. Rxc8 {[%clk 0:01:15]}  Qa4 {[%clk 0:00:29]} 30. Rf8+ {[%clk 0:01:12]}  Bxf8 {[%clk 0:00:26]} 31. Qxf8# {[%clk 0:01:13]} 1-0


[Site "https://www.chess.com"]